fUST/lending_fUST_20251014
["ID","MTS","AMOUNT","RATE_DAILY","PERIOD"]
[391190076,1760413230414,500.0,0.00020264,2]
[391190077,1760413230661,500.0,0.00020264,2]
[391190078,1760413230935,500.0,0.00020264,2]
[391190079,1760413231172,500.0,0.00020264,2]
[391190080,1760413231412,500.0,0.00020264,2]
[391190081,1760413231675,500.0,0.00020264,2]
[391190082,1760413231914,500.0,0.00020264,2]
[391190083,1760413232177,500.0,0.00020264,2]
[391190084,1760413232442,500.0,0.00020264,2]
[391190085,1760413232694,500.0,0.00020264,2]
[391190086,1760413232928,500.0,0.00020264,2]
[391190087,1760413233193,500.0,0.00020264,2]
[391190088,1760413233383,500.0,0.00020264,2]
[391190089,1760413233430,500.0,0.00020264,2]
[391190090,1760413233674,500.0,0.00020264,2]
[391190091,1760413233917,377.67873669,0.00020264,2]
[391190092,1760413234085,122.32126331,0.00020264,2]
[391190093,1760413234210,500.0,0.00020264,2]
[391190094,1760413234451,500.0,0.00020264,2]
[391190095,1760413234606,-4084.58907198,0.00020364,2]
[391190096,1760413234807,500.0,0.00020264,2]
[391190097,1760413234847,-1830.83185604,0.00020364,2]
[391190098,1760413234876,-500.0,0.00020364,2]
[391190099,1760413234998,500.0,0.00020264,2]
[391190100,1760413235031,500.0,0.00020264,2]
[391190101,1760413235063,500.0,0.00020364,2]
[391190102,1760413235182,500.0,0.00020264,2]
[391190103,1760413235213,500.0,0.00020264,2]
[391190104,1760413235280,500.0,0.00020364,2]
[391190105,1760413235419,500.0,0.00020264,2]
[391190106,1760413235448,520.23668976,0.00020264,2]
[391190107,1760413235520,500.0,0.00020364,2]
[391190108,1760413235678,500.0,0.00020264,2]
[391190109,1760413235758,318.10959816,0.00020364,2]
[391190110,1760413235780,181.89040184,0.00020364,2]
[391190111,1760413235923,500.0,0.00020264,2]
[391190112,1760413235997,500.0,0.00020364,2]
[391190113,1760413236029,8818.11959816,0.00020364,2]
[391190114,1760413236052,8377.68873669,0.00020364,2]
[391190115,1760413236073,10000.01,0.00020364,2]
[391190116,1760413236100,10000.01,0.00020364,2]
[391190117,1760413236122,10000.01,0.00020364,2]
[391190118,1760413246882,-500.0,0.00020264,2]
[391190119,1760413246911,-500.0,0.00020264,2]
[391190120,1760413246938,-501.75501672,0.00020264,2]
[391190121,1760413246966,-500.0,0.00020264,2]
[391190122,1760413246994,-500.0,0.00020264,2]
[391190123,1760413247026,-500.0,0.00020264,2]
[391190124,1760413247055,-403.04,0.00020264,2]
[391190125,1760413247085,-831.01,0.00020264,2]
[391190126,1760413247112,-525.48214862,0.00020264,2]
[391190127,1760413247448,-831.01,0.00020264,2]
[391190128,1760413247478,-500.0,0.00020264,2]
[391190129,1760413247508,-831.01,0.00020264,2]
[391190130,1760413247538,-500.0,0.00020264,2]
[391190131,1760413247565,-831.01,0.00020264,2]
[391190132,1760413247593,-500.0,0.00020264,2]
[391190133,1760413247621,-831.01,0.00020264,2]
[391190134,1760413247686,-831.01,0.00020264,2]
[391190135,1760413247716,-831.01,0.00020264,2]
[391190136,1760413247745,-831.01,0.00020264,2]
[391190137,1760413247774,-831.01,0.00020264,2]
[391190138,1760413247835,831.01,0.00020264,2]
[391190139,1760413247978,831.01,0.00020264,2]
[391190140,1760413248164,831.01,0.00020264,2]
[391190141,1760413248197,500.0,0.00020264,2]
[391190142,1760413248231,358.9,0.00020264,2]
[391190143,1760413248255,472.11,0.00020264,2]
[391190144,1760413248283,500.0,0.00020264,2]
[391190145,1760413248411,500.0,0.00020264,2]
[391190146,1760413248440,831.01,0.00020264,2]
[391190147,1760413248634,500.0,0.00020264,2]
[391190148,1760413248662,831.01,0.00020264,2]
[391190149,1760413248881,500.0,0.00020264,2]
[391190150,1760413249149,500.0,0.00020264,2]
[391190151,1760413249196,831.01,0.00020264,2]
[391190152,1760413249389,427.36,0.00020264,2]
[391190153,1760413249505,831.01,0.00020264,2]
[391190154,1760413249820,831.01,0.00020264,2]
[391190155,1760413250088,831.01,0.00020264,2]
[391190156,1760413250683,831.01,0.00020264,2]
[391190157,1760413250930,783.47,0.00020264,2]
[391190158,1760413297432,2114.9,0.00019422,2]
[391190159,1760413304966,348.80212841,0.00020163,2]
[391190160,1760413322233,300.0,0.00020164,2]
[391190161,1760413324475,195.18868102,0.00020163,2]
[391190162,1760413347435,500.0,0.00020164,2]
[391190163,1760413351743,374.33729718,0.00020164,2]
[391190164,1760413352566,294.42014221,0.00020164,2]
[391190165,1760413352592,300.0,0.00020164,2]
[391190166,1760413352620,216.86040173,0.00020164,2]
[391190167,1760413352650,500.0,0.00020164,2]
[391190168,1760413352689,194.66068688,0.00020164,2]
[391190169,1760413377633,2087.98,0.000195,2]
[391190170,1760413382550,500.0,0.00020164,2]
[391190171,1760413382605,300.0,0.00020164,2]
[391190172,1760413382804,507.28090977,0.00020164,2]
[391190173,1760413393983,344.05342886,0.00020063,4]
[391190174,1760413422015,-167.18791133,0.00020165,2]
[391190175,1760413425463,151.0,0.000181,2]
[391190176,1760413432234,3234.22845235,0.00020165,2]
[391190177,1760413432262,1765.77154765,0.00020165,2]
[391190178,1760413442670,300.0,0.00020164,2]
[391190179,1760413451728,500.0,0.00020164,2]
[391190180,1760413452155,500.0,0.00020164,2]
[391190181,1760413452418,500.0,0.00020164,2]
[391190182,1760413452688,500.0,0.00020164,2]
[391190183,1760413452935,500.0,0.00020164,2]
[391190184,1760413453628,500.0,0.00020164,2]
[391190185,1760413453961,208.95015509,0.00020164,2]
[391190186,1760413454932,4725.28829726,0.00020165,2]
[391190187,1760413454955,274.71170274,0.00020165,2]
[391190188,1760413455814,500.0,0.00020164,2]
[391190189,1760413456076,500.0,0.00020164,2]
[391190190,1760413456341,511.41750764,0.00020164,2]
[391190191,1760413463813,2061.41,0.00019445,2]
[391190192,1760413467262,500.0,0.00020164,2]
[391190193,1760413467554,500.0,0.00020164,2]
[391190194,1760413467896,167.17540248,0.00020164,2]
[391190195,1760413467937,318.41071998,0.00020164,2]
[391190196,1760413472422,731.61,0.00020164,2]
[391190197,1760413472660,731.61,0.00020164,2]
[391190198,1760413472899,731.61,0.00020164,2]
[391190199,1760413473156,731.61,0.00020164,2]
[391190200,1760413473477,731.61,0.00020164,2]
[391190201,1760413473735,731.61,0.00020164,2]
[391190202,1760413473991,277.22466716,0.00020164,2]
[391190203,1760413474013,454.38533284,0.00020164,2]
[391190204,1760413474270,1000.0,0.00019368,2]
[391190205,1760413474305,731.61,0.00020164,2]
[391190206,1760413474451,-7193.86119332,0.00020165,2]
[391190207,1760413474477,731.61,0.00020164,2]
[391190208,1760413474623,-9268.4,0.00020165,2]
[391190209,1760413474707,731.61,0.00020164,2]
[391190210,1760413474761,-9268.4,0.00020165,2]
[391190211,1760413474942,731.61,0.00020164,2]
[391190212,1760413475175,731.61,0.00020164,2]
[391190213,1760413475400,731.61,0.00020164,2]
[391190214,1760413475627,731.61,0.00020164,2]
[391190215,1760413477815,-731.61,0.00020164,2]
[391190216,1760413477847,-731.61,0.00020164,2]
[391190217,1760413477874,-731.61,0.00020164,2]
[391190218,1760413478012,-731.61,0.00020164,2]
[391190219,1760413478041,-731.61,0.00020164,2]
[391190220,1760413478072,-731.61,0.00020164,2]
[391190221,1760413478102,-489.08,0.00020164,2]
[391190222,1760413478200,-242.53,0.00020164,2]
[391190223,1760413478228,-731.61,0.00020164,2]
[391190224,1760413478255,-731.61,0.00020164,2]
[391190225,1760413478285,-1588.51,0.00020165,2]
[391190226,1760413478351,-731.77,0.00020164,2]
[391190227,1760413478378,-3411.49,0.00020165,2]
[391190228,1760413478450,-232.52369079,0.00020165,2]
[391190229,1760413478642,-499.24630921,0.00020165,2]
[391190230,1760413478656,-1713.49,0.00020165,2]
[391190231,1760413478674,-232.52369079,0.00020165,2]
[391190232,1760413478688,-9534.96261842,0.00020165,2]
[391190233,1760413478715,-10000.01,0.00020165,2]
[391190234,1760413478732,-10000.01,0.00020165,2]
[391190235,1760413482002,-278.0,0.00020164,2]
[391190236,1760413483995,756.56,0.00020164,2]
[391190237,1760413484233,756.56,0.00020164,2]
[391190238,1760413484473,756.56,0.00020164,2]
[391190239,1760413484707,756.56,0.00020164,2]
[391190240,1760413484959,756.56,0.00020164,2]
[391190241,1760413485203,756.56,0.00020164,2]
[391190242,1760413485458,756.56,0.00020164,2]
[391190243,1760413485696,756.56,0.00020164,2]
[391190244,1760413485786,2208.2283846,0.00020165,2]
[391190245,1760413485942,756.56,0.00020164,2]
[391190246,1760413486184,426.7416154,0.00020164,2]
[391190247,1760413486207,329.8183846,0.00020164,2]
[391190248,1760413486437,756.56,0.00020164,2]
[391190249,1760413486704,756.56,0.00020164,2]
[391190250,1760413486936,756.56,0.00020164,2]
[391190251,1760413487195,756.56,0.00020164,2]
[391190252,1760413487434,756.56,0.00020164,2]
[391190253,1760413487668,756.56,0.00020164,2]
[391190254,1760413487918,756.56,0.00020164,2]
[391190255,1760413488173,756.56,0.00020164,2]
[391190256,1760413488418,756.56,0.00020164,2]
[391190257,1760413488655,756.56,0.00020164,2]
[391190258,1760413488907,756.56,0.00020164,2]
[391190259,1760413489203,756.56,0.00020164,2]
[391190260,1760413489446,591.4716154,0.00020164,2]
[391190261,1760413489469,165.0883846,0.00020164,2]
[391190262,1760413489922,756.62,0.00020164,2]
[391190263,1760413493870,5000.0,0.00020165,2]
[391190264,1760413494630,500.0,0.00020164,2]
[391190265,1760413494862,500.0,0.00020164,2]
[391190266,1760413495118,500.0,0.00020164,2]
[391190267,1760413495434,500.0,0.00020164,2]
[391190268,1760413495672,500.0,0.00020164,2]
[391190269,1760413495897,504.23907198,0.00020164,2]
[391190270,1760413500080,806.87,0.00020164,2]
[391190271,1760413500220,267.19254342,0.00020164,2]
[391190272,1760413500245,539.67745658,0.00020164,2]
[391190273,1760413500445,806.87,0.00020164,2]
[391190274,1760413500673,806.87,0.00020164,2]
[391190275,1760413500911,806.87,0.00020164,2]
[391190276,1760413501189,806.87,0.00020164,2]
[391190277,1760413501448,806.87,0.00020164,2]
[391190278,1760413501716,5000.0,0.00020165,2]
[391190279,1760413502310,300.0,0.00020164,2]
[391190280,1760413502372,125.98254342,0.00020164,2]
[391190281,1760413502398,174.01745658,0.00020164,2]
[391190282,1760413503186,1200.0,0.00020164,2]
[391190283,1760413504882,500.0,0.00020164,2]
[391190284,1760413505092,500.0,0.00020164,2]
[391190285,1760413505410,636.93550371,0.00020164,2]
[391190286,1760413506441,500.0,0.00020164,2]
[391190287,1760413506527,806.87,0.00020164,2]
[391190288,1760413506819,806.87,0.00020164,2]
[391190289,1760413507074,806.87,0.00020164,2]
[391190290,1760413507319,806.87,0.00020164,2]
[391190291,1760413507585,806.87,0.00020164,2]
[391190292,1760413507841,806.87,0.00020164,2]
[391190293,1760413508069,806.87,0.00020164,2]
[391190294,1760413508359,806.87,0.00020164,2]
[391190295,1760413508597,806.87,0.00020164,2]
[391190296,1760413508832,806.87,0.00020164,2]
[391190297,1760413509045,500.0,0.00020164,2]
[391190298,1760413509097,806.87,0.00020164,2]
[391190301,1760413509440,158.86160917,0.00020164,2]
[391190302,1760413509486,806.87,0.00020164,2]
[391190303,1760413509611,806.87,0.00020164,2]
[391190304,1760413509836,806.87,0.00020164,2]
[391190305,1760413510077,806.87,0.00020164,2]
[391190306,1760413510325,806.87,0.00020164,2]
[391190307,1760413510577,807.03,0.00020164,2]
[391190308,1760413511157,500.0,0.00020164,2]
[391190309,1760413511382,500.0,0.00020164,2]
[391190310,1760413511669,500.0,0.00020164,2]
[391190311,1760413511913,487.38563957,0.00020164,2]
[391190312,1760413515314,500.0,0.00020164,2]
[391190313,1760413515558,500.0,0.00020164,2]
[391190314,1760413515787,500.0,0.00020164,2]
[391190315,1760413516035,500.89086401,0.00020164,2]
[391190316,1760413517816,500.0,0.00020164,2]
[391190317,1760413518057,500.0,0.00020164,2]
[391190318,1760413518316,500.0,0.00020164,2]
[391190319,1760413518561,500.0,0.00020164,2]
[391190320,1760413518594,500.0,0.00020164,2]
[391190321,1760413518826,500.0,0.00020164,2]
[391190322,1760413518860,500.0,0.00020164,2]
[391190323,1760413519054,500.0,0.00020164,2]
[391190324,1760413519095,347.98370506,0.00020164,2]
[391190325,1760413519299,500.0,0.00020164,2]
[391190326,1760413519553,500.0,0.00020164,2]
[391190327,1760413519829,500.0,0.00020164,2]
[391190328,1760413520081,500.0,0.00020164,2]
[391190329,1760413520131,163.74979136,0.00020164,2]
[391190330,1760413520152,336.25020864,0.00020164,2]
[391190331,1760413520354,500.0,0.00020164,2]
[391190332,1760413520500,500.0,0.00020164,2]
[391190333,1760413520659,500.0,0.00020164,2]
[391190334,1760413520894,504.05134616,0.00020164,2]
[391190335,1760413523262,500.0,0.00020164,2]
[391190336,1760413523515,497.33740702,0.00020164,2]
[391190337,1760413524441,5000.0,0.00020165,2]
[391190338,1760413524901,500.0,0.00020164,2]
[391190339,1760413525185,500.0,0.00020164,2]
[391190340,1760413525403,500.0,0.00020164,2]
[391190341,1760413525439,500.0,0.00020164,2]
[391190342,1760413525638,500.0,0.00020164,2]
[391190343,1760413525664,500.0,0.00020164,2]
[391190344,1760413525892,500.0,0.00020164,2]
[391190345,1760413525920,500.0,0.00020164,2]
[391190346,1760413526135,2.67259298,0.00020164,2]
[391190347,1760413526159,624.12043135,0.00020164,2]
[391190348,1760413526186,500.0,0.00020164,2]
[391190349,1760413526411,500.0,0.00020164,2]
[391190350,1760413526610,1574.7478709,0.00020164,2]
[391190351,1760413526644,500.0,0.00020164,2]
[391190352,1760413528603,500.0,0.00020164,2]
[391190353,1760413528859,500.0,0.00020164,2]
[391190354,1760413529118,500.0,0.00020164,2]
[391190355,1760413529364,500.0,0.00020164,2]
[391190356,1760413529700,500.0,0.00020164,2]
[391190357,1760413530075,190.57104713,0.00020164,2]
[391190358,1760413530539,500.0,0.00020164,2]
[391190359,1760413530623,500.0,0.00020164,2]
[391190360,1760413531285,500.0,0.00020164,2]
[391190361,1760413531335,500.0,0.00020164,2]
[391190362,1760413531564,-1439.52452636,0.00020165,2]
[391190363,1760413531594,500.0,0.00020164,2]
[391190364,1760413531734,500.0,0.00020164,2]
[391190365,1760413531897,504.66,0.00020164,2]
[391190366,1760413533510,-8495.35,0.00020165,2]
[391190367,1760413533634,-10000.01,0.00020165,2]
[391190368,1760413533732,-10000.01,0.00020165,2]
[391190369,1760413533856,-500.0,0.00020164,2]
[391190370,1760413533907,-9000.01,0.00020165,2]
[391190371,1760413533996,-10000.01,0.00020165,2]
[391190372,1760413534131,-500.0,0.00020164,2]
[391190373,1760413534175,-9000.01,0.00020165,2]
[391190374,1760413534233,-10000.01,0.00020165,2]
[391190375,1760413534371,-500.0,0.00020164,2]
[391190376,1760413534409,-9000.01,0.00020165,2]
[391190377,1760413534505,-10000.01,0.00020165,2]
[391190378,1760413535511,-500.0,0.00020164,2]
[391190379,1760413535542,-500.0,0.00020164,2]
[391190380,1760413535568,-500.0,0.00020164,2]
[391190381,1760413535595,-500.0,0.00020164,2]
[391190382,1760413535667,-500.0,0.00020164,2]
[391190383,1760413535676,-5500.01,0.00020165,2]
[391190384,1760413539735,5000.0,0.0002,2]
[391190385,1760413545702,2138.03,0.00019533,2]
[391190386,1760413547525,5000.0,0.00020164,2]
[391190387,1760413555608,5000.0,0.00020164,2]
[391190388,1760413556994,0.01,0.00020164,2]
[391190389,1760413557023,10000.01,0.00020164,2]
[391190390,1760413557049,10000.01,0.00020164,2]
[391190391,1760413557073,10000.01,0.00020164,2]
[391190392,1760413557097,10000.01,0.00020164,2]
[391190393,1760413557120,4084.52907198,0.00020164,2]
[391190394,1760413562847,300.0,0.00020163,2]
[391190395,1760413563679,5000.0,0.00020164,2]
[391190396,1760413572356,615.48092802,0.00020164,2]
[391190397,1760413572378,4384.51907198,0.00020164,2]
[391190398,1760413580304,5000.0,0.00020164,2]
[391190399,1760413588490,615.49092802,0.00020164,2]
[391190400,1760413588511,4384.50907198,0.00020164,2]
[391190401,1760413596856,5000.0,0.00020164,2]
[391190402,1760413605440,615.50092802,0.00020164,2]
[391190403,1760413605462,4384.49907198,0.00020164,2]
[391190404,1760413613418,5000.0,0.00020164,2]
[391190405,1760413617575,305.20186235,0.00020064,2]
[391190406,1760413621923,310.30906567,0.00020164,2]
[391190407,1760413621946,4689.69093433,0.00020164,2]
[391190408,1760413623530,300.0,0.00020163,2]
[391190409,1760413626697,2149.94,0.00019476,2]
[391190410,1760413638229,2860.37906567,0.00020164,2]
[391190411,1760413638252,2139.62093433,0.00020164,2]
[391190412,1760413641064,-500.0,0.00020164,2]
[391190413,1760413641093,-500.0,0.00020164,2]
[391190414,1760413641123,-500.0,0.00020164,2]
[391190415,1760413641150,-523.54167521,0.00020164,2]
[391190416,1760413641180,-500.0,0.00020164,2]
[391190417,1760413641210,-500.0,0.00020164,2]
[391190418,1760413641240,-500.0,0.00020164,2]
[391190419,1760413641268,-500.0,0.00020164,2]
[391190420,1760413641298,-500.0,0.00020164,2]
[391190421,1760413641326,-452.92664958,0.00020164,2]
[391190422,1760413641468,500.0,0.00020163,2]
[391190423,1760413641618,500.0,0.00020163,2]
[391190424,1760413641713,500.0,0.00020163,2]
[391190425,1760413641950,500.0,0.00020163,2]
[391190426,1760413642252,500.0,0.00020163,2]
[391190427,1760413642486,500.0,0.00020163,2]
[391190428,1760413645135,-47.07335042,0.00020164,2]
[391190429,1760413645165,-500.0,0.00020164,2]
[391190430,1760413645198,-500.0,0.00020164,2]
[391190431,1760413645229,-500.0,0.00020164,2]
[391190432,1760413645261,-647.1349205,0.00020164,2]
[391190433,1760413645290,-500.0,0.00020164,2]
[391190434,1760413645322,-500.0,0.00020164,2]
[391190435,1760413645350,-426.85931804,0.00020164,2]
[391190436,1760413645378,-500.0,0.00020164,2]
[391190437,1760413645405,-500.0,0.00020164,2]
[391190438,1760413645433,-257.87482208,0.00020164,2]
[391190439,1760413646221,4860.38906567,0.00020164,2]
[391190440,1760413646245,139.61093433,0.00020164,2]
[391190441,1760413647313,1200.0,0.00020163,2]
[391190442,1760413649378,-242.12517792,0.00020164,2]
[391190443,1760413649406,-523.56331347,0.00020164,2]
[391190444,1760413649435,-500.0,0.00020164,2]
[391190445,1760413649466,-500.0,0.00020164,2]
[391190446,1760413649494,-500.0,0.00020164,2]
[391190447,1760413649522,-500.0,0.00020164,2]
[391190448,1760413649550,-260.41251393,0.00020164,2]
[391190449,1760413649577,-500.0,0.00020164,2]
[391190450,1760413649606,-500.0,0.00020164,2]
[391190451,1760413649633,-500.0,0.00020164,2]
[391190452,1760413649660,-447.80798936,0.00020164,2]
[391190453,1760413649803,500.0,0.00020163,2]
[391190454,1760413649999,500.0,0.00020163,2]
[391190455,1760413650038,500.0,0.00020163,2]
[391190456,1760413650270,500.0,0.00020163,2]
[391190457,1760413650509,500.0,0.00020163,2]
[391190458,1760413650756,506.69133119,0.00020163,2]
[391190459,1760413650784,487.51358852,0.00020163,2]
[391190460,1760413651207,-52.19201064,0.00020164,2]
[391190461,1760413651238,-500.0,0.00020164,2]
[391190462,1760413651268,-500.0,0.00020164,2]
[391190463,1760413651299,-500.0,0.00020164,2]
[391190464,1760413651327,-457.83030826,0.00020164,2]
[391190465,1760413651356,-500.0,0.00020164,2]
[391190466,1760413651383,-500.0,0.00020164,2]
[391190467,1760413651412,-500.0,0.00020164,2]
[391190468,1760413651438,-500.0,0.00020164,2]
[391190469,1760413651466,-500.0,0.00020164,2]
[391190470,1760413651497,-479.9653622,0.00020164,2]
[391190471,1760413653261,-20.0346378,0.00020164,2]
[391190472,1760413653289,-502.34296403,0.00020164,2]
[391190473,1760413653317,-484.51690759,0.00020164,2]
[391190474,1760413653344,-500.0,0.00020164,2]
[391190475,1760413653372,-500.0,0.00020164,2]
[391190476,1760413653400,-500.0,0.00020164,2]
[391190477,1760413653428,-500.0,0.00020164,2]
[391190478,1760413653455,-500.0,0.00020164,2]
[391190479,1760413653485,-500.0,0.00020164,2]
[391190480,1760413653514,-500.0,0.00020164,2]
[391190481,1760413653542,-486.22098116,0.00020164,2]
[391190482,1760413654382,5000.0,0.00020164,2]
[391190483,1760413654663,166.19414596,0.00020163,2]
[391190484,1760413654692,333.80585404,0.00020163,2]
[391190485,1760413654903,500.0,0.00020163,2]
[391190486,1760413655151,500.0,0.00020163,2]
[391190487,1760413655305,-13.77901884,0.00020164,2]
[391190488,1760413655338,-500.0,0.00020164,2]
[391190489,1760413655374,-500.0,0.00020164,2]
[391190490,1760413655410,-500.0,0.00020164,2]
[391190491,1760413655445,-500.0,0.00020164,2]
[391190492,1760413655479,-504.67849272,0.00020164,2]
[391190493,1760413655512,-399.30690851,0.00020164,2]
[391190494,1760413655546,-500.0,0.00020164,2]
[391190495,1760413655578,-500.0,0.00020164,2]
[391190496,1760413655612,-500.0,0.00020164,2]
[391190497,1760413655645,-500.0,0.00020164,2]
[391190498,1760413655801,213.84079056,0.00020163,2]
[391190499,1760413656325,500.0,0.00020163,2]
[391190500,1760413656369,400.0848484,0.00020163,2]
[391190501,1760413657319,-500.0,0.00020164,2]
[391190502,1760413657347,-500.0,0.00020164,2]
[391190503,1760413657374,-500.0,0.00020164,2]
[391190504,1760413657402,-500.0,0.00020164,2]
[391190505,1760413657429,-500.0,0.00020164,2]
[391190506,1760413657456,-500.0,0.00020164,2]
[391190507,1760413657482,-500.0,0.00020164,2]
[391190508,1760413657509,-500.0,0.00020164,2]
[391190509,1760413657535,-500.0,0.00020164,2]
[391190510,1760413657562,-235.06884735,0.00020164,2]
[391190511,1760413657588,-29.8723053,0.00020164,2]
[391190512,1760413657755,-470.1276947,0.00020164,2]
[391190513,1760413657782,-500.0,0.00020164,2]
[391190514,1760413657808,-500.0,0.00020164,2]
[391190515,1760413657835,-500.0,0.00020164,2]
[391190516,1760413657862,-500.0,0.00020164,2]
[391190517,1760413657890,-500.0,0.00020164,2]
[391190518,1760413657917,-500.0,0.00020164,2]
[391190519,1760413657944,-500.0,0.00020164,2]
[391190520,1760413657972,-500.0,0.00020164,2]
[391190521,1760413658001,-500.0,0.00020164,2]
[391190522,1760413659353,-500.0,0.00020164,2]
[391190523,1760413659384,-500.0,0.00020164,2]
[391190524,1760413659412,-500.0,0.00020164,2]
[391190525,1760413659440,-500.0,0.00020164,2]
[391190526,1760413659467,-500.0,0.00020164,2]
[391190527,1760413659496,-500.0,0.00020164,2]
[391190528,1760413659525,-500.0,0.00020164,2]
[391190529,1760413659554,-500.0,0.00020164,2]
[391190530,1760413659584,-500.0,0.00020164,2]
[391190531,1760413659612,-500.0,0.00020164,2]
[391190532,1760413659794,-500.0,0.00020164,2]
[391190533,1760413659822,-500.0,0.00020164,2]
[391190534,1760413659852,-500.0,0.00020164,2]
[391190535,1760413659879,-482.65147374,0.00020164,2]
[391190536,1760413659906,-500.0,0.00020164,2]
[391190537,1760413659935,-500.0,0.00020164,2]
[391190538,1760413659963,-500.0,0.00020164,2]
[391190539,1760413659990,-500.0,0.00020164,2]
[391190540,1760413660019,-500.0,0.00020164,2]
[391190541,1760413660047,-500.0,0.00020164,2]
[391190542,1760413661381,-500.0,0.00020164,2]
[391190543,1760413661409,-491.38101919,0.00020164,2]
[391190544,1760413661438,-500.0,0.00020164,2]
[391190545,1760413661467,-500.0,0.00020164,2]
[391190546,1760413661498,-500.0,0.00020164,2]
[391190547,1760413661525,-500.0,0.00020164,2]
[391190548,1760413661553,-500.0,0.00020164,2]
[391190549,1760413661583,-500.0,0.00020164,2]
[391190550,1760413661610,-500.0,0.00020164,2]
[391190551,1760413661640,-500.0,0.00020164,2]
[391190552,1760413661923,-575.68,0.00020164,2]
[391190553,1760413661951,-500.0,0.00020164,2]
[391190554,1760413661979,-500.0,0.00020164,2]
[391190555,1760413662007,-500.0,0.00020164,2]
[391190556,1760413662034,-500.0,0.00020164,2]
[391190557,1760413662062,-500.0,0.00020164,2]
[391190558,1760413662088,-500.0,0.00020164,2]
[391190559,1760413662116,-500.0,0.00020164,2]
[391190560,1760413662148,-500.0,0.00020164,2]
[391190561,1760413662176,-348.65,0.00020164,2]
[391190562,1760413662464,-151.35,0.00020164,2]
[391190563,1760413662576,-31.75827173,0.00020164,2]
[391190564,1760413662963,5000.0,0.00020164,2]
[391190565,1760413663433,-468.24172827,0.00020164,2]
[391190566,1760413663460,-500.0,0.00020164,2]
[391190567,1760413663488,-500.0,0.00020164,2]
[391190568,1760413663520,-608.14,0.00020164,2]
[391190569,1760413663547,-500.0,0.00020164,2]
[391190570,1760413663573,-500.0,0.00020164,2]
[391190571,1760413663601,-500.0,0.00020164,2]
[391190572,1760413663633,-500.0,0.00020164,2]
[391190573,1760413664025,223.32194561,0.00020064,2]
[391190574,1760413664613,-265.21950802,0.00020164,2]
[391190575,1760413664640,156.1509448,0.00020064,2]
[391190576,1760413666618,156.1509448,0.00020089,2]
[391190577,1760413666797,-367.79421095,0.00020164,2]